fUST/lending_fUST_20251206
["ID","MTS","AMOUNT","RATE_DAILY","PERIOD"]
[396518808,1765029281733,-671.27240308,8.897e-05,2]
[396518809,1765029282112,1266.94,8.251e-05,2]
[396518810,1765029282246,205.8151286,8.758e-05,2]
[396518811,1765029285582,-170.13759692,8.897e-05,2]
[396518812,1765029285621,-39.08570846,8.917e-05,2]
[396518813,1765029287089,-278.57856392,8.917e-05,2]
[396518814,1765029289172,-197.48242656,8.917e-05,2]
[396518817,1765029293095,-118.43668012,8.917e-05,2]
[396518818,1765029293135,-163.4661529,9e-05,2]
[396518819,1765029295989,-1103.4838471,9e-05,2]
[396518820,1765029297587,-264.36760307,9.004e-05,2]
[396518821,1765029300565,-264.43587518,9.004e-05,2]
[396518823,1765029302583,-213.96167796,9.003e-05,2]
[396518824,1765029304062,-86.03832204,9.003e-05,2]
[396518825,1765029304107,-69.72696653,9.003e-05,2]
[396518826,1765029305667,-160.44059531,9.003e-05,2]
[396518827,1765029307007,369.83243816,8.913e-05,2]
[396518828,1765029309430,-69.83243816,9.003e-05,2]
[396518829,1765029309476,-230.16756184,9.003e-05,2]
[396518830,1765029311044,-69.83243816,9.003e-05,2]
[396518831,1765029311085,-251.96736519,9.003e-05,2]
[396518832,1765029311593,-48.03263481,9.003e-05,2]
[396518833,1765029311643,-1200.0,9.003e-05,2]
[396518834,1765029313224,-253.90223388,9.004e-05,2]
[396518835,1765029314749,-221.61461118,9.004e-05,2]
[396518836,1765029314802,417.29428787,8.914e-05,2]
[396518837,1765029318318,1073.44,8.3e-05,2]
[396518838,1765029318618,1073.44,8.4e-05,2]
[396518839,1765029318940,1073.44,8.5e-05,2]
[396518840,1765029319247,1073.44,8.6e-05,2]
[396518841,1765029320034,1073.44,8.7e-05,2]
[396518842,1765029320223,1073.44,8.8e-05,2]
[396518843,1765029320510,646.01044251,9e-05,2]
[396518844,1765029320557,427.42955749,9e-05,2]
[396518845,1765029326938,-195.67967669,9.004e-05,2]
[396518847,1765029330840,195.67967669,8.914e-05,2]
[396518848,1765029336804,1073.42,8.251e-05,2]
[396518849,1765029338339,8339.55096993,8.914e-05,2]
[396518850,1765029338385,6629.04231198,8.914e-05,2]
[396518851,1765029342585,264.78,7.522e-05,2]
[396518852,1765029343030,529.56,8.206e-05,2]
[396518853,1765029343469,794.34,8.889e-05,2]
[396518858,1765029353615,1782.28768802,8.914e-05,2]
[396518859,1765029353659,10000.01,8.914e-05,2]
[396518860,1765029353704,10000.01,8.914e-05,2]
[396518861,1765029353749,10000.01,8.914e-05,2]
[396518862,1765029353795,10000.01,8.914e-05,2]
[396518863,1765029353842,10000.01,8.914e-05,2]
[396518864,1765029353887,8229.80440106,8.914e-05,2]
[396518865,1765029373320,-300.0,8.913e-05,2]
[396518866,1765029378261,901.69,8.3e-05,2]
[396518867,1765029378594,901.69,8.4e-05,2]
[396518868,1765029378680,300.0,8.913e-05,2]
[396518869,1765029379616,901.69,8.5e-05,2]
[396518870,1765029379969,901.69,8.6e-05,2]
[396518871,1765029380468,901.69,8.7e-05,2]
[396518872,1765029380796,901.69,8.8e-05,2]
[396518873,1765029386714,901.69,8.91e-05,2]
[396518874,1765029388312,-901.69,9e-05,2]
[396518876,1765029394501,300.0,8.913e-05,2]
[396518878,1765029402580,300.0,8.913e-05,2]
[396518879,1765029410377,300.0,8.913e-05,2]
[396518884,1765029419215,300.0,8.913e-05,2]
[396518885,1765029422206,252.83,7.51e-05,2]
[396518886,1765029422594,505.67,8.192e-05,2]
[396518887,1765029422837,300.0,9.002e-05,2]
[396518888,1765029423018,758.5,8.875e-05,2]
[396518889,1765029427002,8183.01,8.913e-05,2]
[396518890,1765029427201,3650.13347077,8.913e-05,2]
[396518891,1765029435048,6349.87652923,8.913e-05,2]
[396518892,1765029435091,10000.01,8.913e-05,2]
[396518893,1765029435135,424.73084218,8.913e-05,2]
[396518894,1765029442012,827.06,8.3e-05,2]
[396518895,1765029442304,827.06,8.4e-05,2]
[396518896,1765029442742,827.06,8.5e-05,2]
[396518897,1765029443186,827.06,8.6e-05,2]
[396518898,1765029443488,827.06,8.7e-05,2]
[396518899,1765029443775,827.06,8.8e-05,2]
[396518900,1765029455187,206.8461797,8.7e-05,2]
[396518901,1765029459481,3862.91820686,8.736e-05,2]
[396518902,1765029481620,967.88561344,8.736e-05,2]
[396518903,1765029481658,2895.03259342,8.736e-05,2]
[396518904,1765029498499,739.94,8.3e-05,2]
[396518905,1765029498786,739.94,8.4e-05,2]
[396518906,1765029499064,739.94,8.5e-05,2]
[396518907,1765029499360,739.94,8.6e-05,2]
[396518908,1765029500268,739.94,8.7e-05,2]
[396518909,1765029500375,739.94,8.8e-05,2]
[396518910,1765029500509,258.5,7.514e-05,2]
[396518911,1765029500727,517.0,8.197e-05,2]
[396518912,1765029503855,517.0,8.115e-05,2]
[396518913,1765029504166,1372.83740658,8.067e-05,2]
[396518914,1765029504205,2198.82665012,8.067e-05,2]
[396518926,1765029525680,3862.91820686,8.736e-05,2]
[396518938,1765029547741,3862.91820686,8.736e-05,2]
[396518939,1765029558442,678.77,8.3e-05,2]
[396518940,1765029558763,678.77,8.4e-05,2]
[396518941,1765029559214,678.77,8.5e-05,2]
[396518942,1765029559541,678.77,8.6e-05,2]
[396518943,1765029559861,678.77,8.7e-05,2]
[396518944,1765029560330,678.77,8.8e-05,2]
[396518945,1765029570210,3862.91820686,8.736e-05,2]
[396518950,1765029580096,269.24,7.515e-05,2]
[396518952,1765029580527,538.48,8.198e-05,2]
[396518959,1765029592173,3862.91820686,8.736e-05,2]
[396518968,1765029614391,1137.08179314,8.735e-05,2]
[396518969,1765029618579,624.29,8.3e-05,2]
[396518970,1765029621379,-519.77156038,8.4e-05,2]
[396518971,1765029629146,-104.51843962,8.4e-05,2]
[396518972,1765029629181,-51.14643893,8.5e-05,2]
[396518973,1765029632203,-275.75509805,8.5e-05,2]
[396519002,1765029638979,-243.35538026,8.5e-05,2]
[396519003,1765029642915,1000.0,0.000165,120]
[396519004,1765029644995,-54.03308276,8.5e-05,2]
[396519005,1765029645879,-231.0,8.6e-05,2]
[396519006,1765029647379,-311.82755371,8.6e-05,2]
[396519008,1765029659282,280.33,7.175e-05,2]
[396519009,1765029659695,560.66,7.827e-05,2]
[396519010,1765029660093,840.99,8.479e-05,2]
[396519011,1765029660470,-81.46244629,8.6e-05,2]
[396519012,1765029677321,581.58,8.3e-05,2]
[396519013,1765029677771,581.58,8.4e-05,2]
[396519014,1765029678091,581.58,8.5e-05,2]
[396519015,1765029678495,581.58,8.6e-05,2]
[396519016,1765029681369,-214.45172086,8.7e-05,2]
[396519018,1765029686215,-284.46478645,8.7e-05,2]
[396519021,1765029703521,314.94922538,8.622e-05,2]
[396519022,1765029705863,566.90860569,8.622e-05,2]
[396519023,1765029707984,1007.83752123,8.622e-05,2]
[396519024,1765029710504,1573.1713808,8.622e-05,2]
[396519025,1765029712065,-82.66349269,8.7e-05,2]
[396519026,1765029719872,175.024,8.638e-05,2]
[396519027,1765029734760,175.024,8.638e-05,2]
[396519028,1765029737281,538.51,8.3e-05,2]
[396519029,1765029737742,538.51,8.4e-05,2]
[396519030,1765029738004,538.51,8.5e-05,2]
[396519031,1765029738290,538.51,8.6e-05,2]
[396519032,1765029739668,280.54,7.509e-05,2]
[396519033,1765029740133,561.09,8.191e-05,2]
[396519034,1765029740870,-255.16757039,8.7e-05,2]
[396519035,1765029742630,283.34242961,8.613e-05,2]
[396519036,1765029757602,283.34242961,8.613e-05,2]
[396519037,1765029766001,283.34242961,8.613e-05,2]
[396519038,1765029780936,283.34242961,8.613e-05,2]
[396519039,1765029789370,175.024,8.638e-05,2]
[396519040,1765029797662,175.024,8.638e-05,2]
[396519041,1765029798616,509.39,8.3e-05,2]
[396519042,1765029798963,509.39,8.4e-05,2]
[396519043,1765029799310,509.39,8.5e-05,2]
[396519044,1765029799653,509.39,8.6e-05,2]
[396519045,1765029801295,-396.70744623,8.7e-05,2]
[396519053,1765029819129,286.99,7.283e-05,2]
[396519054,1765029819658,573.97,7.945e-05,2]
[396519055,1765029820129,860.96,8.607e-05,2]
[396519068,1765029845857,175.024,8.638e-05,2]
[396519069,1765029846077,379.15742941,8.534e-05,2]
[396519070,1765029848285,433.32277647,8.534e-05,2]
[396519071,1765029850861,676.3897714,8.534e-05,2]
[396519072,1765029853882,175.024,8.638e-05,2]
[396519073,1765029861368,488.8,8.3e-05,2]
[396519074,1765029861685,488.8,8.4e-05,2]
[396519075,1765029861744,175.024,8.638e-05,2]
[396519076,1765029861997,488.8,8.5e-05,2]
[396519077,1765029862276,488.8,8.6e-05,2]
[396519078,1765029872927,488.8,8.613e-05,2]
[396519079,1765029873806,-214.06772009,8.7e-05,2]
[396519080,1765029877129,-202.41271743,8.7e-05,2]
[396519082,1765029899025,281.83,7.286e-05,2]
[396519083,1765029899480,563.65,7.948e-05,2]
[396519084,1765029899888,845.48,8.61e-05,2]
[396519087,1765029912693,175.024,8.638e-05,2]
[396519090,1765029920259,444.51,8.3e-05,2]
[396519091,1765029920488,175.024,8.638e-05,2]
[396519092,1765029921170,444.51,8.4e-05,2]
[396519093,1765029921797,444.51,8.5e-05,2]
[396519094,1765029923018,444.51,8.6e-05,2]
[396519095,1765029929180,1.10002272,8.613e-05,2]
[396519096,1765029929220,443.40997728,8.613e-05,2]
[396519097,1765029932026,-444.32029366,8.7e-05,2]
[396519098,1765029969855,175.024,8.638e-05,2]
[396519122,1765029977983,175.024,8.638e-05,2]
[396519123,1765029978813,265.96,7.343e-05,2]
[396519124,1765029979264,531.92,8.011e-05,2]
[396519125,1765029981261,-689.59075951,8.678e-05,2]
[396519126,1765029983693,406.41,8.3e-05,2]
[396519127,1765029983999,406.41,8.4e-05,2]
[396519128,1765029984360,406.41,8.5e-05,2]
[396519129,1765029984765,406.41,8.6e-05,2]
[396519130,1765030006548,265.03920604,8.534e-05,2]
[396519131,1765030008512,477.07057087,8.534e-05,2]
[396519132,1765030010830,848.12545932,8.534e-05,2]
[396519133,1765030013154,1323.87083415,8.534e-05,2]
[396519134,1765030038252,377.13,8.3e-05,2]
[396519135,1765030038720,377.13,8.4e-05,2]
[396519136,1765030038928,377.13,8.5e-05,2]
[396519137,1765030039593,377.13,8.6e-05,2]
[396519138,1765030058481,255.8,7.343e-05,2]
[396519139,1765030058880,511.61,8.011e-05,2]
[396519140,1765030060606,377.13,8.613e-05,2]
[396519141,1765030068876,767.41,8.592e-05,2]
[396519142,1765030077095,767.41,8.592e-05,2]
[396519143,1765030084939,767.41,8.592e-05,2]
[396519144,1765030093031,767.41,8.592e-05,2]
[396519145,1765030097727,353.47,8.3e-05,2]
[396519146,1765030098038,353.47,8.4e-05,2]
[396519147,1765030098339,353.47,8.5e-05,2]
[396519148,1765030098652,353.47,8.6e-05,2]
[396519150,1765030100855,767.41,8.592e-05,2]
[396519151,1765030108890,767.41,8.592e-05,2]
[396519152,1765030117134,767.41,8.592e-05,2]
[396519153,1765030125072,767.41,8.592e-05,2]
[396519155,1765030132913,767.41,8.592e-05,2]
[396519156,1765030139672,246.04,7.345e-05,2]
[396519157,1765030140077,492.08,8.013e-05,2]
[396519158,1765030142079,738.11,8.593e-05,2]
[396519159,1765030142685,250.0,0.00013101,3]
[396519160,1765030149880,738.11,8.593e-05,2]
[396519161,1765030149941,157.76405032,8.442e-05,2]
[396519162,1765030152253,283.97529058,8.442e-05,2]
[396519163,1765030154412,504.84496102,8.442e-05,2]
[396519164,1765030156544,788.03143135,8.442e-05,2]
[396519165,1765030157925,738.11,8.593e-05,2]
[396519177,1765030166328,738.11,8.593e-05,2]
[396519178,1765030166581,328.45,8.3e-05,2]
[396519179,1765030166952,328.45,8.4e-05,2]
[396519181,1765030167275,328.45,8.5e-05,2]
[396519182,1765030167571,328.45,8.6e-05,2]
[396519183,1765030174458,738.11,8.593e-05,2]
[396519189,1765030182285,738.11,8.593e-05,2]
[396519194,1765030193665,738.11,8.593e-05,2]
[396519195,1765030201996,738.11,8.593e-05,2]
[396519201,1765030210041,960.11,8.593e-05,2]
[396519205,1765030217874,222.0,8.593e-05,2]
[396519208,1765030220417,236.64,7.344e-05,2]
[396519209,1765030220814,366.07426673,8.011e-05,2]
[396519210,1765030220861,107.21573327,8.011e-05,2]
[396519213,1765030222377,302.18,8.3e-05,2]
[396519214,1765030222705,302.18,8.4e-05,2]
[396519215,1765030223640,302.18,8.5e-05,2]
[396519217,1765030224072,302.18,8.6e-05,2]
[396519220,1765030227072,173.24388771,0.00012108,6]
[396519237,1765030232213,-709.93,8.679e-05,2]
[396519238,1765030232223,-222.0,8.68e-05,2]
[396519239,1765030232233,-205.63205594,8.69e-05,2]
[396519240,1765030232243,-300.0,8.699e-05,2]
[396519241,1765030232252,-300.0,8.699e-05,2]
[396519242,1765030232262,-300.0,8.699e-05,2]
[396519243,1765030232271,-300.0,8.699e-05,2]
[396519244,1765030232280,-1200.0,8.699e-05,2]
[396519245,1765030232290,-1000.0,8.7e-05,2]
[396519246,1765030232299,-1000.0,8.7e-05,2]
[396519247,1765030232308,-1000.0,8.7e-05,2]
[396519248,1765030232318,-895.96421519,8.7e-05,2]
[396519249,1765030232328,-151.0,8.7e-05,2]
[396519250,1765030232337,-178.16563476,8.7e-05,2]
[396519251,1765030232347,-302.18,8.7e-05,2]
[396519252,1765030232363,-175.024,8.725e-05,2]
[396519253,1765030232378,-500.0,8.799e-05,2]
[396519254,1765030232389,-1200.0,8.799e-05,2]
[396519255,1765030232400,-500.0,8.799e-05,2]
[396519256,1765030232409,-104.4145316,8.799e-05,2]
[396519258,1765030232604,-395.5854684,8.799e-05,2]
[396519259,1765030232614,-500.0,8.799e-05,2]
[396519260,1765030232624,-311.54965223,8.799e-05,2]
[396519262,1765030232633,-500.0,8.799e-05,2]
[396519263,1765030232643,-500.0,8.799e-05,2]
[396519265,1765030232652,-360.15893924,8.799e-05,2]
[396519267,1765030232661,-500.0,8.799e-05,2]
[396519269,1765030232670,-500.0,8.799e-05,2]
[396519271,1765030232679,-269.43044235,8.799e-05,2]
[396519273,1765030232689,-500.0,8.799e-05,2]
[396519274,1765030232699,-500.0,8.799e-05,2]
[396519275,1765030232708,-500.0,8.799e-05,2]
[396519277,1765030232717,-500.0,8.799e-05,2]
[396519279,1765030232727,-500.0,8.799e-05,2]
[396519280,1765030232737,-500.0,8.799e-05,2]
[396519281,1765030232746,-500.0,8.799e-05,2]
[396519282,1765030232756,-395.88858297,8.799e-05,2]
[396519283,1765030232765,-500.0,8.799e-05,2]
[396519284,1765030232775,-500.0,8.799e-05,2]
[396519285,1765030232785,-330.13702509,8.799e-05,2]
[396519286,1765030232794,-500.0,8.799e-05,2]
[396519287,1765030232803,-500.0,8.799e-05,2]
[396519288,1765030232813,-500.0,8.799e-05,2]
[396519289,1765030232822,-500.0,8.799e-05,2]
[396519290,1765030232831,-500.0,8.799e-05,2]
[396519291,1765030232841,-500.0,8.799e-05,2]
[396519292,1765030232850,-500.0,8.799e-05,2]
[396519293,1765030232859,-500.0,8.799e-05,2]
[396519294,1765030232869,-500.0,8.799e-05,2]
[396519295,1765030232878,-500.0,8.799e-05,2]
[396519296,1765030232888,-500.0,8.799e-05,2]
[396519297,1765030232898,-569.52409769,8.799e-05,2]
[396519298,1765030232908,-500.0,8.799e-05,2]
[396519299,1765030232918,-500.0,8.799e-05,2]
[396519300,1765030232932,-500.0,8.799e-05,2]
[396519301,1765030232942,-500.0,8.799e-05,2]
[396519302,1765030232952,-500.0,8.799e-05,2]
[396519303,1765030232962,-500.0,8.799e-05,2]
[396519304,1765030232971,-500.0,8.799e-05,2]
[396519305,1765030232981,-500.0,8.799e-05,2]
[396519306,1765030232990,-500.0,8.799e-05,2]
[396519307,1765030233000,-237.36887777,8.799e-05,2]
[396519308,1765030233010,-500.0,8.799e-05,2]
[396519309,1765030233019,-500.0,8.799e-05,2]
[396519310,1765030233029,-500.0,8.799e-05,2]
[396519311,1765030233038,-500.0,8.799e-05,2]
[396519312,1765030233048,-500.0,8.799e-05,2]
[396519313,1765030233058,-500.0,8.799e-05,2]
[396519314,1765030233067,-500.0,8.799e-05,2]
[396519315,1765030233077,-500.0,8.799e-05,2]
[396519316,1765030233087,-500.0,8.799e-05,2]
[396519317,1765030233097,-500.0,8.799e-05,2]
[396519318,1765030233107,-500.0,8.799e-05,2]
[396519319,1765030233116,-500.0,8.799e-05,2]
[396519320,1765030233126,-500.0,8.799e-05,2]
[396519321,1765030233136,-500.0,8.799e-05,2]
[396519322,1765030233145,-500.0,8.799e-05,2]
[396519323,1765030233155,-500.0,8.799e-05,2]
[396519324,1765030233164,-500.0,8.799e-05,2]
[396519325,1765030233174,-500.0,8.799e-05,2]
[396519326,1765030233184,-500.0,8.799e-05,2]
[396519327,1765030233194,-500.0,8.799e-05,2]
[396519328,1765030233203,-500.0,8.799e-05,2]
[396519329,1765030233213,-500.0,8.799e-05,2]
[396519330,1765030233222,-500.0,8.799e-05,2]
[396519331,1765030233232,-500.0,8.799e-05,2]
[396519332,1765030233242,-500.0,8.799e-05,2]
[396519333,1765030233251,-500.0,8.799e-05,2]
[396519334,1765030233260,-386.31989993,8.799e-05,2]
[396519335,1765030233270,-500.0,8.799e-05,2]
[396519336,1765030233279,-500.0,8.799e-05,2]
[396519337,1765030233288,-500.0,8.799e-05,2]
[396519338,1765030233297,-500.0,8.799e-05,2]
[396519339,1765030233306,-500.0,8.799e-05,2]
[396519340,1765030233315,-2583.35618038,8.799e-05,2]
[396519341,1765030233324,-2583.35618038,8.799e-05,2]
[396519342,1765030233333,-2583.35618038,8.799e-05,2]
[396519343,1765030233343,-2583.35618038,8.799e-05,2]
[396519344,1765030233352,-2583.35618038,8.799e-05,2]
[396519345,1765030233365,-2583.35618038,8.799e-05,2]
[396519346,1765030233374,-2298.64196036,8.799e-05,2]
[396519347,1765030233387,-284.71422002,8.799e-05,2]
[396519348,1765030233396,-766.68135528,8.799e-05,2]
[396519349,1765030233409,-476.52,8.799e-05,2]
[396519350,1765030233420,-507.2010556,8.799e-05,2]
[396519352,1765030233807,709.93,8.592e-05,2]
[396519376,1765030238340,-902.6348669,8.799e-05,2]
[396519378,1765030238350,-832.9537695,8.799e-05,2]
[396519380,1765030238363,-2583.35618038,8.799e-05,2]
[396519381,1765030238372,-2583.35618038,8.799e-05,2]
[396519383,1765030238382,-2583.35618038,8.799e-05,2]
[396519385,1765030238392,-2583.35618038,8.799e-05,2]
[396519387,1765030238402,-2583.35618038,8.799e-05,2]
[396519389,1765030238413,-2583.35618038,8.799e-05,2]
[396519391,1765030238422,-2583.35618038,8.799e-05,2]
[396519394,1765030238432,-2583.35618038,8.799e-05,2]
[396519396,1765030238442,-2583.35618038,8.799e-05,2]
[396519398,1765030238452,-2583.35618038,8.799e-05,2]
[396519400,1765030238461,-2583.35618038,8.799e-05,2]
[396519402,1765030238470,-2583.35618038,8.799e-05,2]
[396519404,1765030238479,-2583.35618038,8.799e-05,2]
[396519406,1765030238489,-2583.35618038,8.799e-05,2]
[396519408,1765030238498,-2583.35618038,8.799e-05,2]
[396519410,1765030238507,-2583.35618038,8.799e-05,2]
[396519412,1765030238516,-2583.35618038,8.799e-05,2]
[396519413,1765030238525,-2583.35618038,8.799e-05,2]
[396519415,1765030238534,-2583.35618038,8.799e-05,2]
[396519417,1765030238543,-2583.35618038,8.799e-05,2]
[396519419,1765030238553,-2583.35618038,8.799e-05,2]
[396519421,1765030238564,-2583.35618038,8.799e-05,2]
[396519423,1765030238573,-2583.35618038,8.799e-05,2]
[396519425,1765030238582,-2583.35618038,8.799e-05,2]
[396519428,1765030238601,-2583.35618038,8.799e-05,2]
[396519430,1765030238613,-2583.35618038,8.799e-05,2]
[396519432,1765030238622,-2583.35618038,8.799e-05,2]
[396519434,1765030238632,-2583.35618038,8.799e-05,2]
[396519436,1765030238641,-2583.35618038,8.799e-05,2]
[396519438,1765030238651,-2583.35618038,8.799e-05,2]
[396519440,1765030238662,-2570.19624961,8.799e-05,2]
[396519442,1765030238671,-2570.19624961,8.799e-05,2]
[396519444,1765030238681,-2570.19624961,8.799e-05,2]
[396519446,1765030238690,-2570.19624961,8.799e-05,2]
[396519448,1765030238700,-2570.19624961,8.799e-05,2]
[396519450,1765030238710,-2570.19624961,8.799e-05,2]
[396519451,1765030238720,-2570.19624961,8.799e-05,2]
[396519452,1765030238730,-2570.19624961,8.799e-05,2]
[396519453,1765030238740,-2570.19624961,8.799e-05,2]
[396519454,1765030238749,-2570.19624961,8.799e-05,2]
[396519455,1765030238759,-2570.19624961,8.799e-05,2]
[396519456,1765030238769,-2570.19624961,8.799e-05,2]
[396519457,1765030238779,-2570.19624961,8.799e-05,2]
[396519458,1765030238789,-2021.92440588,8.799e-05,2]
[396519459,1765030238834,-548.27184373,8.799e-05,2]
[396519460,1765030238844,-904.72815627,8.799e-05,2]
[396519461,1765030238855,-1665.46809334,8.799e-05,2]
[396519462,1765030238865,-1059.88289975,8.799e-05,2]
[396519470,1765030241032,-3e-08,8.799e-05,2]
[396519471,1765030241044,-400.19930188,8.799e-05,2]
[396519472,1765030241069,-1030.44315966,8.799e-05,2]
[396519473,1765030241081,-79.67088829,8.799e-05,2]
[396519474,1765030241091,-820.32911171,8.799e-05,2]
[396519487,1765030251185,-744.91563282,8.711e-05,2]
[396519489,1765030253280,-157.71923408,8.711e-05,2]
[396519490,1765030253331,-112.53290295,8.799e-05,2]
[396519492,1765030256314,157.71923408,8.624e-05,2]
[396519500,1765030266188,-236.05176843,8.71e-05,2]
[396519503,1765030268148,-63.94823157,8.71e-05,2]
[396519504,1765030268193,-130.07878496,8.798e-05,2]
[396519505,1765030270282,-169.92121504,8.798e-05,2]
[396519506,1765030270322,-155.48290866,8.798e-05,2]
[396519508,1765030272054,-105.41332702,8.798e-05,2]
[396519509,1765030272100,-50.91709368,8.799e-05,2]
[396519511,1765030274422,-191.29049432,8.799e-05,2]
[396519513,1765030276029,-236.3304207,8.799e-05,2]
[396519515,1765030278657,271.97,8.3e-05,2]
[396519516,1765030278953,271.97,8.4e-05,2]
[396519517,1765030279253,271.97,8.5e-05,2]
[396519518,1765030279546,271.97,8.6e-05,2]
[396519519,1765030279860,271.97,8.7e-05,2]
[396519520,1765030279924,8640.16,8.711e-05,2]
[396519521,1765030279971,10000.01,8.711e-05,2]
[396519522,1765030280018,3905.21930132,8.711e-05,2]
[396519525,1765030282601,-296.06072671,8.798e-05,2]
[396519526,1765030282779,379.36422257,8.798e-05,2]
[396519527,1765030282997,500.0,8.798e-05,2]
[396519528,1765030283410,500.0,8.798e-05,2]
[396519529,1765030283480,500.0,8.798e-05,2]
[396519530,1765030283625,399.06136486,8.798e-05,2]
[396519531,1765030284073,500.0,8.798e-05,2]
[396519532,1765030284281,500.0,8.798e-05,2]
[396519533,1765030284622,500.0,8.798e-05,2]
[396519534,1765030284905,500.0,8.798e-05,2]
[396519535,1765030284970,500.0,8.798e-05,2]
[396519537,1765030286835,232.39024706,8.798e-05,2]
[396519538,1765030287097,500.0,8.798e-05,2]
[396519539,1765030287316,378.56232377,8.798e-05,2]
[396519540,1765030287392,500.0,8.798e-05,2]
[396519541,1765030287468,500.0,8.798e-05,2]
[396519542,1765030287721,500.0,8.798e-05,2]
[396519543,1765030287790,500.0,8.798e-05,2]
[396519544,1765030287857,500.0,8.798e-05,2]
[396519545,1765030287919,500.0,8.798e-05,2]
[396519546,1765030287975,500.0,8.798e-05,2]
[396519547,1765030288042,18.51038832,8.798e-05,2]
[396519548,1765030288088,481.48961168,8.798e-05,2]
[396519549,1765030288150,500.0,8.798e-05,2]
[396519550,1765030288209,1981.23109839,8.711e-05,2]
[396519551,1765030288264,500.0,8.798e-05,2]
[396519552,1765030288329,500.0,8.798e-05,2]
[396519553,1765030288388,500.0,8.798e-05,2]
[396519554,1765030288442,500.0,8.798e-05,2]
[396519555,1765030288589,500.0,8.798e-05,2]
[396519556,1765030288673,194.36080847,8.798e-05,2]
[396519557,1765030288749,500.0,8.798e-05,2]
[396519558,1765030288804,500.0,8.798e-05,2]
[396519559,1765030288870,500.0,8.798e-05,2]
[396519560,1765030288926,500.0,8.798e-05,2]
[396519561,1765030288983,500.0,8.798e-05,2]
[396519562,1765030289048,500.0,8.798e-05,2]
[396519563,1765030289112,500.0,8.798e-05,2]
[396519564,1765030289177,500.0,8.798e-05,2]
[396519565,1765030289232,342.92848146,8.798e-05,2]
[396519566,1765030289277,157.07151854,8.798e-05,2]
[396519567,1765030289347,500.0,8.798e-05,2]
[396519568,1765030289425,500.0,8.798e-05,2]
[396519569,1765030289483,500.0,8.798e-05,2]
[396519571,1765030289559,500.0,8.798e-05,2]
[396519573,1765030289618,500.0,8.798e-05,2]
[396519574,1765030289682,500.0,8.798e-05,2]
[396519575,1765030289758,500.0,8.798e-05,2]
[396519576,1765030289877,500.0,8.798e-05,2]
[396519577,1765030289934,500.0,8.798e-05,2]
[396519578,1765030289998,500.0,8.798e-05,2]
[396519579,1765030290080,500.0,8.798e-05,2]
[396519585,1765030297088,1000.0,8.799e-05,2]
[396519586,1765030298218,1000.0,8.799e-05,2]
[396519588,1765030298768,218.57,7.28e-05,2]
[396519589,1765030299218,437.15,7.942e-05,2]
[396519590,1765030299626,655.72,8.603e-05,2]
[396519592,1765030301908,500.0,0.0001311,3]
[396519596,1765030310307,207.37054083,8.442e-05,2]
[396519600,1765030313963,372.89370652,8.442e-05,2]
[396519601,1765030315267,-265.86700989,8.711e-05,2]
[396519602,1765030316112,500.0,0.0001311,3]
[396519606,1765030318649,-216.23218323,8.711e-05,2]
[396519608,1765030320780,-163.26432836,8.711e-05,2]
[396519612,1765030325249,500.0,0.0001311,3]
[396519617,1765030333523,503.3243929,0.0001311,3]
[396519621,1765030338340,247.8,8.3e-05,2]
[396519624,1765030338797,247.8,8.4e-05,2]
[396519625,1765030339201,-286.03832204,8.711e-05,2]
[396519626,1765030339381,247.8,8.5e-05,2]
[396519627,1765030339789,247.8,8.6e-05,2]
[396519628,1765030339853,354.63647852,8.624e-05,2]
[396519632,1765030344818,500.0,0.0001311,3]
[396519637,1765030362394,172.02634549,8.613e-05,2]
[396519638,1765030379046,201.88,7.547e-05,2]
[396519639,1765030379453,403.76,8.233e-05,2]
[396519640,1765030399234,230.5,8.3e-05,2]